fUST/lending_fUST_20240115
["ID","MTS","AMOUNT","RATE_DAILY","PERIOD"]
[311654808,1705285843102,-500.0,0.00027844,2]
[311654809,1705285843111,-278.26569893,0.00027844,2]
[311654810,1705285843121,-502.4278378,0.00027844,2]
[311654811,1705285843130,-534.36183417,0.00027844,2]
[311654812,1705285843139,-500.0,0.00027844,2]
[311654813,1705285843148,-551.03374077,0.00027844,2]
[311654814,1705285843157,-155.51098803,0.00027943,2]
[311654815,1705285843167,-500.0,0.00027944,2]
[311654816,1705285843176,-500.0,0.00027944,2]
[311654817,1705285843185,-500.0,0.00027945,2]
[311654819,1705285843195,-500.0,0.00027945,2]
[311654821,1705285843205,-500.0,0.00027945,2]
[311654822,1705285843214,-1065.68,0.00027945,2]
[311654823,1705285843223,-500.0,0.00027945,2]
[311654824,1705285843233,-500.0,0.00027945,2]
[311654825,1705285843242,-507.44,0.00027945,2]
[311654826,1705285843251,-1908.13,0.00027945,2]
[311654827,1705285843260,-500.0,0.00027945,2]
[311654828,1705285843270,-1181.11,0.00027945,2]
[311654829,1705285843279,-719.38,0.00027945,2]
[311654830,1705285843288,-500.0,0.00027945,2]
[311654831,1705285843298,-2049.09,0.00027945,2]
[311654832,1705285843307,-502.29,0.00027945,2]
[311654833,1705285843316,-672.8,0.00027945,2]
[311654834,1705285843325,-500.0,0.00027945,2]
[311654835,1705285843335,-273.24057728,0.00027945,2]
[311654836,1705285843344,-837.97,0.00027945,2]
[311654837,1705285843353,-545.74874845,0.00027945,2]
[311654838,1705285843363,-500.0,0.00027945,2]
[311654839,1705285843372,-500.0,0.00027945,2]
[311654840,1705285843381,-500.0,0.00027945,2]
[311654841,1705285843390,-1190.47,0.00027945,2]
[311654842,1705285843400,-509.16,0.00027945,2]
[311654843,1705285843411,-500.0,0.00027945,2]
[311654844,1705285843420,-500.0,0.00027945,2]
[311654845,1705285843430,-810.59,0.00027945,2]
[311654846,1705285843440,-4582.69,0.00027945,2]
[311654847,1705285843449,-500.0,0.00027945,2]
[311654848,1705285843459,-610.33,0.00027945,2]
[311654849,1705285843468,-821.87,0.00027945,2]
[311654850,1705285843478,-500.0,0.00027945,2]
[311654851,1705285843487,-574.47,0.00027945,2]
[311654852,1705285843496,-940.5,0.00027945,2]
[311654853,1705285843506,-500.0,0.00027945,2]
[311654854,1705285843515,-302.73916427,0.00027945,2]
[311654855,1705285843524,-1072.31,0.00027945,2]
[311654856,1705285843533,-550.77,0.00027945,2]
[311654857,1705285843543,-500.0,0.00027945,2]
[311654858,1705285843552,-1133.04,0.00027945,2]
[311654859,1705285843561,-324.20723267,0.00027945,2]
[311654860,1705285843571,-1943.45,0.00027945,2]
[311654861,1705285843580,-11699.97,0.00027945,2]
[311654862,1705285843590,-792.09,0.00027945,2]
[311654863,1705285843599,-632.68,0.00027945,2]
[311654864,1705285843609,-2076.3,0.00027945,2]
[311654865,1705285843618,-953.74,0.00027945,2]
[311654866,1705285843627,-500.0,0.00027945,2]
[311654867,1705285843636,-3783.72,0.00027945,2]
[311654868,1705285843646,-504.4795375,0.00027945,2]
[311654869,1705285843655,-18701.65,0.00027945,2]
[311654870,1705285843664,-500.0,0.00027945,2]
[311654871,1705285843673,-500.0,0.00027945,2]
[311654872,1705285843682,-500.0,0.00027945,2]
[311654873,1705285843691,-500.0,0.00027945,2]
[311654874,1705285843701,-500.0,0.00027945,2]
[311654875,1705285843710,-576.8,0.00027945,2]
[311654876,1705285843720,-274.57,0.00028,4]
[311654877,1705285843729,-202.73433386,0.00028118,4]
[311654878,1705285843739,-500.0,0.00028118,4]
[311654879,1705285843748,-211.82992355,0.00028118,4]
[311654880,1705285843758,-324.97354414,0.00028118,4]
[311654881,1705285843767,-497.83570284,0.00028118,4]
[311654882,1705285843777,-500.0,0.00028118,2]
[311654883,1705285843787,-500.0,0.00028118,2]
[311654884,1705285843796,-557.54,0.00028118,2]
[311654885,1705285843806,-500.0,0.00028118,2]
[311654886,1705285843815,-500.0,0.00028118,2]
[311654887,1705285843825,-500.0,0.00028118,2]
[311654888,1705285843834,-1469.81,0.00028118,2]
[311654889,1705285843844,-500.0,0.00028118,2]
[311654890,1705285843853,-500.0,0.00028118,2]
[311654891,1705285843863,-1035.08,0.00028118,2]
[311654892,1705285843874,-500.0,0.00028118,2]
[311654893,1705285843887,-5319.84,0.00028118,2]
[311654894,1705285843897,-6151.48,0.00028118,2]
[311654895,1705285843906,-3289.15,0.00028118,2]
[311654896,1705285843916,-500.0,0.00028118,2]
[311654897,1705285843925,-35673.24107111,0.00028119,2]
[311654898,1705285843935,-500.0,0.00028218,2]
[311654899,1705285843944,-500.0,0.00028219,2]
[311654901,1705285843954,-500.0,0.00028219,2]
[311654902,1705285843964,-500.0,0.00028219,2]
[311654903,1705285843974,-1065.68,0.00028219,2]
[311654904,1705285843983,-500.0,0.00028219,2]
[311654905,1705285843993,-500.0,0.00028219,2]
[311654906,1705285844002,-507.44,0.00028219,2]
[311654907,1705285844011,-500.0,0.00028219,2]
[311654908,1705285844021,-1908.13,0.00028219,2]
[311654909,1705285844030,-1181.11,0.00028219,2]
[311654910,1705285844039,-719.38,0.00028219,2]
[311654911,1705285844049,-500.0,0.00028219,2]
[311654912,1705285844058,-2049.09,0.00028219,2]
[311654913,1705285844068,-502.29,0.00028219,2]
[311654914,1705285844077,-672.8,0.00028219,2]
[311654915,1705285844086,-500.0,0.00028219,2]
[311654916,1705285844096,-837.97,0.00028219,2]
[311654917,1705285844105,-500.0,0.00028219,2]
[311654918,1705285844114,-195.47469929,0.00028219,2]
[311654919,1705285844124,-500.0,0.00028219,2]
[311654921,1705285844133,-1190.47,0.00028219,2]
[311654923,1705285844142,-509.16,0.00028219,2]
[311654925,1705285844151,-500.0,0.00028219,2]
[311654926,1705285844161,-500.0,0.00028219,2]
[311654927,1705285844170,-810.59,0.00028219,2]
[311654928,1705285844180,-4582.69,0.00028219,2]
[311654930,1705285844189,-500.0,0.00028219,2]
[311654932,1705285844199,-610.33,0.00028219,2]
[311654933,1705285844207,-821.87,0.00028219,2]
[311654935,1705285844217,-500.0,0.00028219,2]
[311654936,1705285844226,-574.47,0.00028219,2]
[311654937,1705285844236,-940.5,0.00028219,2]
[311654938,1705285844245,-500.0,0.00028219,2]
[311654939,1705285844255,-1072.31,0.00028219,2]
[311654940,1705285844264,-550.77,0.00028219,2]
[311654941,1705285844274,-500.0,0.00028219,2]
[311654942,1705285844283,-1133.04,0.00028219,2]
[311654943,1705285844293,-1943.45,0.00028219,2]
[311654944,1705285844303,-11699.97,0.00028219,2]
[311654945,1705285844312,-792.09,0.00028219,2]
[311654946,1705285844322,-632.68,0.00028219,2]
[311654947,1705285844331,-2076.3,0.00028219,2]
[311654948,1705285844340,-953.74,0.00028219,2]
[311654949,1705285844350,-500.0,0.00028219,2]
[311654950,1705285844359,-3783.72,0.00028219,2]
[311654951,1705285844368,-18701.65,0.00028219,2]
[311654952,1705285844377,-500.0,0.00028219,2]
[311654953,1705285844387,-503.73527236,0.00028219,2]
[311654954,1705285844396,-500.0,0.00028219,2]
[311654955,1705285844405,-500.0,0.00028219,2]
[311654956,1705285844414,-576.8,0.00028219,2]
[311654957,1705285844424,-236.8989473,0.00028219,2]
[311654958,1705285844433,-153.0,0.00028219,2]
[311654959,1705285844442,-153.0,0.00028219,2]
[311654960,1705285844452,-153.0,0.00028219,2]
[311654961,1705285844461,-153.0,0.00028219,2]
[311654962,1705285844471,-151.75924971,0.00028391,2]
[311654963,1705285844480,-500.0,0.00028392,2]
[311654964,1705285844490,-500.0,0.00028392,2]
[311654965,1705285844499,-557.54,0.00028392,2]
[311654966,1705285844508,-500.0,0.00028392,2]
[311654967,1705285844518,-500.0,0.00028392,2]
[311654968,1705285844527,-500.0,0.00028392,2]
[311654969,1705285844536,-1469.81,0.00028392,2]
[311654970,1705285844545,-515.34296366,0.00028392,2]
[311654971,1705285844555,-1035.08,0.00028392,2]
[311654972,1705285844564,-500.0,0.00028392,2]
[311654973,1705285844573,-5319.84,0.00028392,2]
[311654974,1705285844582,-6151.48,0.00028392,2]
[311654975,1705285844592,-3289.15,0.00028392,2]
[311654976,1705285844601,-500.0,0.00028392,2]
[311654977,1705285844610,-500.0,0.00028492,2]
[311654978,1705285844620,-500.0,0.00028492,2]
[311654979,1705285844630,-500.0,0.00028493,2]
[311654980,1705285844639,-500.0,0.00028493,2]
[311654981,1705285844649,-500.0,0.00028493,2]
[311654982,1705285844659,-1065.68,0.00028493,2]
[311654983,1705285844668,-322.79178692,0.00028493,2]
[311654984,1705285844678,-500.0,0.00028493,2]
[311654985,1705285844687,-507.44,0.00028493,2]
[311654986,1705285844699,-500.0,0.00028493,2]
[311654987,1705285844710,-1908.13,0.00028493,2]
[311654988,1705285844718,-1181.11,0.00028493,2]
[311654989,1705285844728,-719.38,0.00028493,2]
[311654990,1705285844737,-559.72216916,0.00028493,2]
[311654991,1705285844747,-2049.09,0.00028493,2]
[311654992,1705285844756,-502.29,0.00028493,2]
[311654993,1705285844766,-672.8,0.00028493,2]
[311654994,1705285844776,-500.0,0.00028493,2]
[311654995,1705285844785,-837.97,0.00028493,2]
[311654996,1705285844795,-500.0,0.00028493,2]
[311654997,1705285844804,-500.0,0.00028493,2]
[311654998,1705285844813,-1190.47,0.00028493,2]
[311654999,1705285844906,-509.16,0.00028493,2]
[311655000,1705285844915,-500.0,0.00028493,2]
[311655001,1705285844925,-500.0,0.00028493,2]
[311655002,1705285844934,-810.59,0.00028493,2]
[311655003,1705285844946,-4582.69,0.00028493,2]
[311655004,1705285844955,-500.0,0.00028493,2]
[311655005,1705285844965,-610.33,0.00028493,2]
[311655006,1705285844974,-821.87,0.00028493,2]
[311655007,1705285844983,-500.0,0.00028493,2]
[311655008,1705285844993,-574.47,0.00028493,2]
[311655009,1705285845001,-940.5,0.00028493,2]
[311655010,1705285845011,-500.0,0.00028493,2]
[311655011,1705285845020,-1072.31,0.00028493,2]
[311655012,1705285845029,-550.77,0.00028493,2]
[311655013,1705285845039,-500.0,0.00028493,2]
[311655014,1705285845048,-1133.04,0.00028493,2]
[311655015,1705285845058,-1943.45,0.00028493,2]
[311655016,1705285845066,-11699.97,0.00028493,2]
[311655017,1705285845076,-792.09,0.00028493,2]
[311655018,1705285845085,-632.68,0.00028493,2]
[311655019,1705285845094,-2076.3,0.00028493,2]
[311655020,1705285845103,-953.74,0.00028493,2]
[311655021,1705285845112,-500.0,0.00028493,2]
[311655022,1705285845122,-3783.72,0.00028493,2]
[311655023,1705285845130,-18701.65,0.00028493,2]
[311655024,1705285845140,-500.0,0.00028493,2]
[311655025,1705285845149,-500.0,0.00028493,2]
[311655026,1705285845158,-500.0,0.00028493,2]
[311655027,1705285845167,-576.8,0.00028493,2]
[311655028,1705285845177,-500.0,0.00028666,2]
[311655029,1705285845187,-420.73170956,0.00028666,2]
[311655030,1705285845198,-557.54,0.00028666,2]
[311655031,1705285845207,-217.02885693,0.00028666,2]
[311655032,1705285845216,-500.0,0.00028666,2]
[311655033,1705285845226,-412.90018737,0.00028666,2]
[311655034,1705285845235,-1469.81,0.00028666,2]
[311655035,1705285845244,-1035.08,0.00028666,2]
[311655036,1705285845254,-500.0,0.00028666,2]
[311655037,1705285845263,-5319.84,0.00028666,2]
[311655038,1705285845272,-6151.48,0.00028666,2]
[311655039,1705285845282,-3289.15,0.00028666,2]
[311655040,1705285845292,-500.0,0.00028666,2]
[311655041,1705285845301,-5000.0,0.00028673,5]
[311655042,1705285845311,-5000.0,0.00028673,5]
[311655043,1705285845320,-19801.25423295,0.00028673,3]
[311655044,1705285845330,-5101.75903511,0.00028673,3]
[311655045,1705285845339,-5000.0,0.00028673,5]
[311655046,1705285845349,-2081.50544171,0.00028673,3]
[311655047,1705285845359,-500.0,0.00028766,2]
[311655048,1705285845368,-500.0,0.00028767,2]
[311655049,1705285845378,-500.0,0.00028767,2]
[311655050,1705285845387,-500.0,0.00028767,2]
[311655051,1705285845397,-1065.68,0.00028767,2]
[311655052,1705285845407,-598.54010946,0.00028767,2]
[311655053,1705285845416,-507.44,0.00028767,2]
[311655054,1705285845426,-500.0,0.00028767,2]
[311655055,1705285845436,-1908.13,0.00028767,2]
[311655056,1705285845447,-1181.11,0.00028767,2]
[311655057,1705285845456,-719.38,0.00028767,2]
[311655058,1705285845465,-2049.09,0.00028767,2]
[311655059,1705285845474,-502.29,0.00028767,2]
[311655060,1705285845484,-672.8,0.00028767,2]
[311655061,1705285845493,-500.0,0.00028767,2]
[311655062,1705285845503,-837.97,0.00028767,2]
[311655063,1705285845514,-500.0,0.00028767,2]
[311655064,1705285845523,-500.0,0.00028767,2]
[311655065,1705285845533,-1190.47,0.00028767,2]
[311655066,1705285845543,-509.16,0.00028767,2]
[311655067,1705285845552,-500.0,0.00028767,2]
[311655068,1705285845562,-500.0,0.00028767,2]
[311655069,1705285845571,-810.59,0.00028767,2]
[311655070,1705285845581,-4582.69,0.00028767,2]
[311655071,1705285845590,-500.0,0.00028767,2]
[311655072,1705285845600,-610.33,0.00028767,2]
[311655073,1705285845610,-821.87,0.00028767,2]
[311655074,1705285845618,-500.0,0.00028767,2]
[311655075,1705285845628,-574.47,0.00028767,2]
[311655076,1705285845637,-940.5,0.00028767,2]
[311655077,1705285845647,-155.0,0.00028767,2]
[311655078,1705285845655,-500.0,0.00028767,2]
[311655079,1705285845665,-1072.31,0.00028767,2]
[311655080,1705285845674,-550.77,0.00028767,2]
[311655081,1705285845683,-500.0,0.00028767,2]
[311655082,1705285845693,-1133.04,0.00028767,2]
[311655083,1705285845703,-1943.45,0.00028767,2]
[311655084,1705285845712,-11699.97,0.00028767,2]
[311655085,1705285845722,-792.09,0.00028767,2]
[311655086,1705285845731,-632.68,0.00028767,2]
[311655087,1705285845740,-2076.3,0.00028767,2]
[311655088,1705285845750,-953.74,0.00028767,2]
[311655089,1705285845759,-500.0,0.00028767,2]
[311655090,1705285845769,-3783.72,0.00028767,2]
[311655091,1705285845778,-18701.65,0.00028767,2]
[311655092,1705285845788,-500.0,0.00028767,2]
[311655093,1705285845798,-500.0,0.00028767,2]
[311655094,1705285845808,-500.0,0.00028767,2]
[311655095,1705285845817,-576.8,0.00028767,2]
[311655096,1705285845826,-217.861042,0.00028767,2]
[311655097,1705285845835,-500.0,0.0002894,2]
[311655098,1705285845844,-557.54,0.0002894,2]
[311655099,1705285845854,-500.0,0.0002894,2]
[311655100,1705285845863,-1469.81,0.0002894,2]
[311655101,1705285845872,-1035.08,0.0002894,2]
[311655102,1705285845885,-500.0,0.0002894,2]
[311655103,1705285845894,-5319.84,0.0002894,2]
[311655104,1705285845903,-6151.48,0.0002894,2]
[311655105,1705285845912,-3289.15,0.0002894,2]
[311655106,1705285845922,-500.0,0.0002894,2]
[311655107,1705285845931,-186.2756002,0.00029,2]
[311655108,1705285845941,-2316.63489669,0.00029,2]
[311655109,1705285845952,-238.525294,0.00029,2]
[311655110,1705285845963,-2046.884197,0.00029,2]
[311655111,1705285845973,-150.0,0.00029,2]
[311655112,1705285845982,-212.00277784,0.00029008,3]
[311655113,1705285845992,-500.0,0.0002904,2]
[311655114,1705285846001,-500.0,0.0002904,2]
[311655115,1705285846010,-3316.84809972,0.00029041,2]
[311655116,1705285846020,-261.19258853,0.00029041,2]
[311655117,1705285846029,-500.0,0.00029041,2]
[311655118,1705285846038,-500.0,0.00029041,2]
[311655119,1705285846048,-500.0,0.00029041,2]
[311655120,1705285846057,-1065.68,0.00029041,2]
[311655121,1705285846066,-507.44,0.00029041,2]
[311655122,1705285846075,-500.0,0.00029041,2]
[311655123,1705285846084,-1908.13,0.00029041,2]
[311655124,1705285846094,-1181.11,0.00029041,2]
[311655125,1705285846103,-719.38,0.00029041,2]
[311655126,1705285846112,-2049.09,0.00029041,2]
[311655127,1705285846121,-502.29,0.00029041,2]
[311655128,1705285846130,-672.8,0.00029041,2]
[311655129,1705285846139,-500.0,0.00029041,2]
[311655130,1705285846148,-837.97,0.00029041,2]
[311655131,1705285846157,-500.0,0.00029041,2]
[311655132,1705285846166,-500.0,0.00029041,2]
[311655133,1705285846175,-1190.47,0.00029041,2]
[311655134,1705285846185,-155.50072448,0.00029041,2]
[311655135,1705285846194,-509.16,0.00029041,2]
[311655136,1705285846203,-500.0,0.00029041,2]
[311655137,1705285846213,-500.0,0.00029041,2]
[311655138,1705285846223,-810.59,0.00029041,2]
[311655139,1705285846233,-4582.69,0.00029041,2]
[311655140,1705285846242,-500.0,0.00029041,2]
[311655141,1705285846252,-610.33,0.00029041,2]
[311655142,1705285846261,-821.87,0.00029041,2]
[311655143,1705285846270,-500.0,0.00029041,2]
[311655144,1705285846279,-574.47,0.00029041,2]
[311655145,1705285846288,-940.5,0.00029041,2]
[311655146,1705285846298,-500.0,0.00029041,2]
[311655147,1705285846307,-1072.31,0.00029041,2]
[311655149,1705285846316,-550.77,0.00029041,2]
[311655150,1705285846326,-500.0,0.00029041,2]
[311655151,1705285846335,-1133.04,0.00029041,2]
[311655152,1705285846344,-1943.45,0.00029041,2]
[311655153,1705285846353,-11699.97,0.00029041,2]
[311655154,1705285846362,-792.09,0.00029041,2]
[311655155,1705285846371,-632.68,0.00029041,2]
[311655156,1705285846380,-2076.3,0.00029041,2]
[311655157,1705285846389,-953.74,0.00029041,2]
[311655158,1705285846398,-500.0,0.00029041,2]
[311655159,1705285846407,-3783.72,0.00029041,2]
[311655160,1705285846417,-18701.65,0.00029041,2]
[311655161,1705285846426,-500.0,0.00029041,2]
[311655162,1705285846436,-589.20604364,0.00029041,2]
[311655163,1705285846445,-500.0,0.00029041,2]
[311655164,1705285846454,-576.8,0.00029041,2]
[311655165,1705285846464,-155.490721,0.00029041,2]
[311655166,1705285846473,-153.0,0.00029041,2]
[311655167,1705285846482,-153.0,0.00029041,2]
[311655168,1705285846491,-153.0,0.00029041,2]
[311655169,1705285846508,-8384.31,0.0002907,2]
[311655170,1705285846520,-7545.88,0.00029075,2]
[311655171,1705285846529,-7545.88,0.00029075,2]
[311655172,1705285846538,-7545.88,0.00029075,2]
[311655173,1705285846547,-4415.88350065,0.00029075,2]
[311655174,1705285846581,-3129.99649935,0.00029075,2]
[311655175,1705285846591,-7545.88,0.00029075,2]
[311655176,1705285846600,-7545.88,0.00029075,2]
[311655177,1705285846609,-5388.81260973,0.00029075,2]
[311655178,1705285847048,-155.0,0.00027396,4]
[311655179,1705285847057,-383.61450309,0.00027396,2]
[311655180,1705285847068,-2742.41278082,0.00027396,2]
[311655181,1705285847078,-500.0,0.00027397,2]
[311655182,1705285847088,-500.0,0.00027397,2]
[311655184,1705285847097,-168.08126236,0.00027397,2]
[311655186,1705285847106,-655.79169339,0.00027397,2]
[311655187,1705285847115,-692.42,0.0002757,2]
[311655188,1705285847125,-500.0,0.0002757,2]
[311655190,1705285847134,-274.36755231,0.00027669,2]
[311655192,1705285847143,-189.01956734,0.0002767,2]
[311655193,1705285847152,-500.0,0.00027671,2]
[311655195,1705285847162,-692.42,0.00027844,2]
[311655196,1705285847171,-164.48532718,0.00027844,2]
[311655198,1705285847180,-500.0,0.00027945,2]
[311655199,1705285847190,-692.42,0.00028118,2]
[311655200,1705285847200,-492.7,0.00028219,2]
[311655201,1705285847209,-692.42,0.00028392,2]
[311655202,1705285847218,-692.42,0.00028666,2]
[311655203,1705285847228,-692.42,0.0002894,2]
[311655204,1705285847237,-3190.70872304,0.00029077,5]
[311655205,1705285847247,-500.0,0.00029214,2]
[311655206,1705285847256,-557.54,0.00029214,2]
[311655207,1705285847265,-500.0,0.00029214,2]
[311655208,1705285847276,-1469.81,0.00029214,2]
[311655209,1705285847285,-1035.08,0.00029214,2]
[311655210,1705285847295,-500.0,0.00029214,2]
[311655211,1705285847304,-5319.84,0.00029214,2]
[311655212,1705285847313,-6151.48,0.00029214,2]
[311655213,1705285847323,-3289.15,0.00029214,2]
[311655214,1705285847333,-500.0,0.00029214,2]
[311655215,1705285847342,-692.42,0.00029214,2]
[311655216,1705285847352,-156.20229825,0.00029217,2]
[311655217,1705285847361,-153.890699,0.00029288,2]
[311655218,1705285847371,-167.49108583,0.00029312,2]
[311655219,1705285847380,-260.59423718,0.00029313,2]
[311655220,1705285847390,-309.82961307,0.00029313,2]
[311655221,1705285847399,-688.31895255,0.00029314,2]
[311655222,1705285847408,-500.0,0.00029314,2]
[311655223,1705285847417,-500.0,0.00029314,2]
[311655224,1705285847427,-500.0,0.00029315,2]
[311655225,1705285847436,-500.0,0.00029315,2]
[311655226,1705285847447,-500.0,0.00029315,2]
[311655227,1705285847456,-1065.68,0.00029315,2]
[311655228,1705285847466,-507.44,0.00029315,2]
[311655229,1705285847475,-500.0,0.00029315,2]
[311655230,1705285847485,-1181.11,0.00029315,2]
[311655231,1705285847494,-719.38,0.00029315,2]
[311655232,1705285847504,-2049.09,0.00029315,2]
[311655233,1705285847513,-502.29,0.00029315,2]
[311655234,1705285847523,-672.8,0.00029315,2]
[311655235,1705285847532,-500.0,0.00029315,2]
[311655236,1705285847542,-837.97,0.00029315,2]
[311655237,1705285847551,-500.0,0.00029315,2]
[311655238,1705285847560,-500.0,0.00029315,2]
[311655239,1705285847569,-1190.47,0.00029315,2]
[311655240,1705285847578,-509.16,0.00029315,2]
[311655241,1705285847588,-500.0,0.00029315,2]
[311655242,1705285847597,-500.0,0.00029315,2]
[311655243,1705285847606,-810.59,0.00029315,2]
[311655244,1705285847616,-4582.69,0.00029315,2]
[311655245,1705285847626,-500.0,0.00029315,2]
[311655246,1705285847635,-610.33,0.00029315,2]
[311655247,1705285847645,-821.87,0.00029315,2]
[311655248,1705285847655,-500.0,0.00029315,2]
[311655249,1705285847664,-574.47,0.00029315,2]
[311655250,1705285847673,-940.5,0.00029315,2]
[311655251,1705285847682,-500.0,0.00029315,2]
[311655252,1705285847691,-1072.31,0.00029315,2]
[311655253,1705285847703,-550.77,0.00029315,2]
[311655254,1705285847712,-500.0,0.00029315,2]
[311655255,1705285847722,-1133.04,0.00029315,2]
[311655256,1705285847731,-1943.45,0.00029315,2]
[311655257,1705285847740,-11699.97,0.00029315,2]
[311655258,1705285847749,-3609.97814104,0.00029315,2]
[311655259,1705285847758,-3609.97814104,0.00029315,2]
[311655260,1705285847768,-3609.97814104,0.00029315,2]
[311655261,1705285847777,-3609.97814104,0.00029315,2]
[311655262,1705285847786,-3609.97814104,0.00029315,2]
[311655263,1705285847796,-3609.97814104,0.00029315,2]
[311655264,1705285847805,-3609.97814104,0.00029315,2]
[311655265,1705285847814,-3609.97814104,0.00029315,2]
[311655266,1705285847823,-3609.97814104,0.00029315,2]
[311655267,1705285847832,-3609.97814104,0.00029315,2]
[311655268,1705285847842,-792.09,0.00029315,2]
[311655269,1705285847851,-632.68,0.00029315,2]
[311655270,1705285847860,-2076.3,0.00029315,2]
[311655271,1705285847869,-953.74,0.00029315,2]
[311655272,1705285847882,-500.0,0.00029315,2]
[311655273,1705285847891,-3783.72,0.00029315,2]
[311655274,1705285847900,-18701.65,0.00029315,2]
[311655275,1705285847910,-500.0,0.00029315,2]
[311655276,1705285847922,-500.0,0.00029315,2]
[311655277,1705285847944,-576.8,0.00029315,2]
[311655278,1705285847963,-306.0,0.00029315,2]
[311655279,1705285847984,-309.4108809,0.00029315,2]
[311655280,1705285848005,-153.2206058,0.00029315,2]
[311655281,1705285848027,-306.2959332,0.00029315,2]
[311655282,1705285848048,-203.0085679,0.00029315,2]
[311655283,1705285848067,-198.8577961,0.00029315,2]
[311655284,1705285848076,-198.8577961,0.00029315,2]
[311655285,1705285848085,-154.3831105,0.00029315,2]
[311655286,1705285848095,-154.8478329,0.00029315,2]
[311655287,1705285848104,-401.939098,0.00029315,2]
[311655288,1705285848113,-401.939098,0.00029315,2]
[311655289,1705285848123,-1840.402449,0.00029315,2]
[311655290,1705285848132,-1840.402449,0.00029315,2]
[311655291,1705285848141,-151.0,0.00029315,2]
[311655292,1705285848150,-207.74662013,0.0002935,2]
[311655293,1705285848159,-1000.0,0.0002935,7]
[311655294,1705285848169,-285.11577406,0.0002935,2]
[311655295,1705285848178,-817.1558095,0.00029351,2]
[311655296,1705285848187,-498.95260461,0.00029351,2]
[311655297,1705285848196,-421.30136394,0.00029351,2]
[311655298,1705285848205,-182.79584586,0.00029351,2]
[311655299,1705285848214,-1000.0,0.00029351,7]
[311655300,1705285848223,-395.1843791,0.00029351,2]
[311655301,1705285848232,-150.0,0.00029391,2]
[311655302,1705285848241,-620.6435839,0.00029395,2]
[311655303,1705285848251,-500.0,0.00029488,2]
[311655304,1705285848261,-557.54,0.00029488,2]
[311655305,1705285848270,-500.0,0.00029488,2]
[311655306,1705285848279,-1469.81,0.00029488,2]
[311655307,1705285848289,-1035.08,0.00029488,2]
[311655308,1705285848298,-500.0,0.00029488,2]
[311655309,1705285848307,-5319.84,0.00029488,2]
[311655310,1705285848316,-6151.48,0.00029488,2]
[311655311,1705285848326,-3289.15,0.00029488,2]
[311655312,1705285848335,-500.0,0.00029488,2]
[311655313,1705285848344,-692.42,0.00029488,2]
[311655314,1705285848354,-224.9303038,0.000295,30]
[311655315,1705285848363,-300.0,0.000295,14]
[311655316,1705285848373,-152.31739518,0.0002956,2]
[311655317,1705285848382,-153.890699,0.00029563,2]
[311655318,1705285848391,-250.05144469,0.00029588,2]
[311655319,1705285848400,-309.95350775,0.00029588,2]
[311655320,1705285848410,-1351.23964793,0.00029588,2]
[311655321,1705285848419,-500.0,0.00029588,2]
[311655322,1705285848428,-500.0,0.00029588,2]
[311655323,1705285848437,-2080.28320628,0.00029589,2]